bitfinex/quotes_ETHUSD_20251217
["timestamp","ask_amount","ask_price","bid_price","bid_amount"]
[1765966993705,0.4504,2931.1,2930.3,0.46438023]
[1765966993906,0.4504,2931.1,2930.0,3.41290899]
[1765966994107,0.4504,2931.1,2930.0,0.46438023]
[1765966994462,0.4504,2931.1,2929.8,0.46438023]
[1765966994752,0.4504,2931.1,2930.2,0.46438023]
[1765966994907,0.4504,2931.1,2930.0,0.0042]
[1765966995412,0.4504,2931.1,2929.8,5.92197963]
[1765966995613,0.4504,2931.1,2929.8,5.92617963]
[1765966995826,0.4504,2931.1,2929.9,0.0042]
[1765966996208,0.4504,2931.1,2929.8,0.46438023]
[1765966996633,0.4504,2931.1,2929.8,3.87751489]
[1765966997264,0.4504,2931.1,2929.8,0.0042]
[1765966997432,0.4504,2931.1,2929.8,0.46858023]
[1765966997625,0.4504,2931.1,2929.4,5.71321825]
[1765966997825,0.4504,2931.1,2929.3,0.405504]
[1765966997826,0.4504,2930.8,2929.6,0.405504]
[1765966998337,0.48451281,2930.8,2929.4,0.405504]
[1765966998739,0.48451281,2930.8,2929.3,0.46438023]
[1765966998740,0.4504,2930.6,2929.1,0.86988423]
[1765966999043,0.4504,2930.4,2929.4,0.405504]
[1765966999741,0.4504,2930.4,2929.2,0.405504]
[1765967000137,0.4504,2930.4,2929.2,0.86988423]
[1765967000755,0.4504,2930.4,2929.4,0.405504]
[1765967001361,0.4504,2930.4,2929.2,0.409704]
[1765967001557,0.4504,2930.4,2929.2,0.405504]
[1765967001929,0.4504,2930.2,2929.2,0.405504]
[1765967002858,0.4504,2930.2,2929.0,0.405504]
[1765967003462,0.4504,2930.2,2928.9,0.407504]
[1765967003463,3.41274191,2930.2,2928.9,0.407504]
[1765967003662,0.4504,2930.1,2928.9,0.407504]
[1765967003862,0.4504,2930.1,2928.9,0.002]
[1765967004163,0.4504,2929.8,2928.9,0.407504]
[1765967005089,0.4504,2929.8,2928.9,0.87188423]
[1765967006083,0.1943,2929.9,2928.9,0.002]
[1765967006084,0.4673,2929.0,2928.9,0.002]
[1765967006804,0.4504,2929.8,2928.9,0.002]
[1765967007387,0.4673,2929.0,2928.9,0.002]
[1765967009675,0.4504,2929.2,2928.9,0.002]
[1765967010199,0.4504,2929.8,2928.9,0.002]
[1765967010361,0.4504,2929.6,2928.9,0.002]
[1765967011989,0.88839147,2929.7,2928.9,0.002]
[1765967012181,6.6543,2929.9,2929.1,0.0042]
[1765967012182,0.1943,2929.9,2929.1,0.0042]
[1765967012699,0.6447,2929.9,2929.1,0.0042]
[1765967013004,0.6447,2930.1,2929.4,0.46438023]
[1765967014605,0.6632,2930.4,2929.7,0.0042]
[1765967015001,0.03411281,2930.8,2929.7,0.0042]
[1765967015002,0.4706,2930.6,2929.7,0.0042]
[1765967015190,0.4706,2930.6,2929.8,0.46858023]
[1765967015702,0.4706,2930.8,2929.9,0.0042]
[1765967016385,0.4698,2930.8,2929.9,0.0042]
[1765967016781,0.37317823,2930.9,2930.0,0.03412969]
[1765967017086,0.37317823,2930.9,2930.1,0.005]
[1765967017612,0.1953,2930.9,2930.2,0.50350759]
[1765967017827,0.1953,2930.9,2930.8,0.005]
[1765967017828,0.001,2930.9,2930.8,0.005]
[1765967019110,0.001,2930.9,2930.8,0.01]
[1765967020208,0.001,2930.9,2930.3,0.39162929]
[1765967020524,0.6699,2930.9,2930.1,0.46438023]
[1765967020721,0.4864,2930.8,2929.7,0.46438023]
[1765967020891,0.4864,2930.8,2929.7,0.46938023]
[1765967021092,0.4864,2930.8,2930.1,0.46438023]
[1765967021623,0.4864,2930.8,2930.1,3.87721752]
[1765967021831,0.4864,2930.8,2930.1,0.46438023]
[1765967022628,0.4864,2930.8,2930.2,0.03412736]
[1765967022923,0.001,2930.9,2930.2,0.005]
[1765967023124,0.001,2930.9,2930.3,0.72950716]
[1765967023915,0.001,2930.9,2930.3,1.19388739]
[1765967024495,0.001,2930.9,2930.3,4.14210847]
[1765967024690,0.001,2930.9,2930.3,4.14711234]
[1765967025002,0.001,2930.9,2930.8,0.005]
[1765967025524,0.001,2930.9,2930.3,0.005]
[1765967026819,0.001,2930.9,2930.8,0.005]
[1765967030155,0.4937,2930.9,2930.4,5.72018441]
[1765967030556,0.4937,2930.9,2930.4,0.005]
[1765967030755,0.4937,2930.9,2930.2,0.005]
[1765967030756,0.6762,2930.9,2930.2,0.005]
[1765967030958,0.6762,2930.9,2930.1,3.41782345]
[1765967030959,1.1626,2930.9,2930.1,3.41782345]
[1765967031128,0.4937,2930.9,2930.3,0.005]
[1765967031452,0.001,2930.9,2930.8,0.005]
[1765967031658,0.001,2930.9,2930.1,4.66743685]
[1765967031659,1.1626,2930.9,2930.1,1.2595975]
[1765967031823,1.1626,2930.9,2930.1,3.41779142]
[1765967032025,0.6762,2930.9,2930.1,3.41779142]
[1765967032225,0.4864,2930.8,2930.1,3.41779142]
[1765967033128,0.001,2930.9,2930.2,0.005]
[1765967033347,0.001,2930.9,2930.3,0.005]
[1765967035642,0.001,2930.9,2930.3,3.41760061]
[1765967035857,0.001,2930.9,2930.3,0.005]
[1765967036546,0.001,2930.9,2930.8,0.005]
[1765967040263,0.4929,2930.9,2930.4,5.71518441]
[1765967040463,0.6754,2930.9,2930.4,5.71518441]
[1765967040663,0.4864,2930.8,2930.1,0.002]
[1765967041272,0.9791,2930.2,2930.1,0.002]
[1765967041434,0.4864,2930.5,2930.1,0.002]
[1765967041637,0.6691,2930.9,2930.1,0.007]
[1765967042070,0.4864,2930.8,2930.1,0.007]
[1765967042592,0.4864,2930.8,2930.1,0.002]
[1765967043765,0.4864,2930.8,2930.1,0.007]
[1765967046192,0.4864,2930.8,2930.1,0.002]
[1765967049376,0.9232,2930.2,2930.1,0.002]
[1765967049582,0.4637,2930.5,2930.1,0.007]
[1765967049777,0.4595,2930.2,2930.1,0.002]
[1765967049991,0.9232,2930.2,2930.1,0.002]
[1765967050216,0.4637,2930.5,2930.1,0.13880241]
[1765967051682,0.4637,2930.5,2930.1,0.002]
[1765967052119,0.9232,2930.2,2930.1,0.002]
[1765967053719,0.4595,2930.2,2930.1,0.002]
[1765967054187,0.9232,2930.2,2930.1,0.002]
[1765967055508,0.4595,2930.2,2930.1,0.002]
[1765967056013,0.4637,2930.5,2930.1,0.007]
[1765967058617,0.9232,2930.2,2930.1,0.002]
[1765967059715,0.4637,2930.5,2930.1,0.002]
[1765967060016,0.4595,2930.2,2930.1,0.002]
[1765967060217,0.4637,2930.5,2930.1,0.002]
[1765967060592,0.9232,2930.2,2930.1,0.002]
[1765967062820,0.4637,2930.5,2930.1,0.002]
[1765967063517,0.4595,2930.2,2930.1,0.002]
[1765967063719,0.9232,2930.2,2930.1,0.002]
[1765967064092,0.9224,2930.2,2930.1,0.002]
[1765967069848,6.46,2930.7,2930.1,0.0078]
[1765967069849,0.4637,2930.5,2930.1,0.0078]
[1765967070402,0.4595,2930.2,2930.1,0.002]
[1765967070599,0.9232,2930.2,2930.1,0.002]
[1765967085405,0.1777088,2930.3,2930.1,4.20995135]
[1765967086002,0.4928,2930.5,2930.1,4.20995135]
[1765967086227,0.4928,2930.5,2930.1,0.0078]
[1765967086372,6.6376749,2930.7,2930.1,0.0078]
[1765967086373,0.4742,2930.2,2930.1,0.002]
[1765967086573,0.4752,2930.2,2930.1,0.002]
[1765967086866,0.001,2930.2,2930.1,4.20995135]
[1765967087499,0.001,2930.2,2930.1,0.0078]
[1765967088075,0.4744,2930.2,2930.1,0.002]
[1765967089411,0.9672,2930.2,2930.1,0.002]
[1765967090226,0.0002,2930.2,2930.1,0.002]
[1765967090367,0.4744,2930.2,2930.1,0.002]
[1765967090571,0.9672,2930.2,2930.1,0.002]
[1765967092492,0.0002,2930.2,2930.1,0.002]
[1765967092912,0.0002,2930.2,2930.1,0.42281513]
[1765967096116,0.4744,2930.2,2930.1,0.42281513]
[1765967096291,0.0002,2930.2,2930.1,0.42861513]
[1765967096688,0.9672,2930.2,2930.1,0.002]
[1765967097906,0.4744,2930.2,2930.1,0.002]
[1765967098417,0.0002,2930.2,2930.1,0.0078]
[1765967099822,0.0002,2930.2,2930.1,0.002]
[1765967101317,0.9672,2930.2,2930.1,0.002]
[1765967102125,0.0002,2930.2,2930.1,0.0078]
[1765967102804,0.9672,2930.2,2930.1,0.002]
[1765967112140,0.4736,2930.2,2930.1,0.002]
[1765967114356,0.001,2930.2,2930.1,0.002]
[1765967114952,0.4722,2930.2,2930.1,0.002]
[1765967115127,0.95,2930.2,2930.1,0.002]
[1765967116154,0.4722,2930.2,2930.1,0.002]
[1765967116761,0.001,2930.2,2930.1,0.002]
[1765967116930,0.4722,2930.2,2930.1,0.002]
[1765967117629,0.001,2930.2,2930.1,0.002]
[1765967117825,0.4722,2930.2,2930.1,0.002]
[1765967118058,0.95,2930.2,2930.1,0.002]
[1765967118831,0.001,2930.2,2930.1,0.0084]
[1765967119238,0.95,2930.2,2930.1,0.002]
[1765967121353,0.949,2930.0,2929.9,0.002]
[1765967121563,1.1311,2929.5,2929.4,0.13885062]
[1765967121884,1.1311,2929.5,2929.4,0.002]
[1765967122074,0.4712,2929.5,2929.4,0.002]
[1765967122367,0.6599,2929.7,2929.4,0.002]
[1765967122575,0.4712,2929.6,2929.5,4.20110763]
[1765967122863,0.4712,2929.5,2929.4,0.002]
[1765967123036,0.4778,2929.6,2929.4,0.002]
[1765967123938,0.1821,2929.7,2929.4,0.002]
[1765967124143,0.4778,2929.6,2929.4,0.002]
[1765967125375,0.4712,2929.5,2929.4,0.002]
[1765967126038,0.6599,2929.7,2929.4,0.0124]
[1765967126238,0.4712,2929.5,2929.4,0.002]
[1765967127338,0.1821,2930.0,2929.4,0.002]
[1765967127573,0.4788,2930.2,2929.9,4.20110763]
[1765967127880,0.4788,2930.2,2929.8,4.20110763]
[1765967128679,0.4788,2930.2,2930.1,4.20110763]
[1765967128680,0.95,2930.2,2930.1,4.20110763]
[1765967128839,0.95,2930.2,2930.1,4.21150763]
[1765967128840,0.001,2930.2,2930.1,4.21150763]
[1765967129033,0.95,2930.2,2930.1,4.20110763]
[1765967129458,0.4722,2930.2,2930.1,4.20110763]
[1765967129870,0.4722,2930.2,2929.7,0.4788]
[1765967129871,0.4712,2929.9,2929.7,0.4788]
[1765967130035,0.949,2929.5,2929.4,0.002]
[1765967130239,0.949,2929.5,2929.0,0.002]
[1765967130240,0.8417,2929.1,2929.0,0.002]
[1765967130772,2.24343362,2929.1,2929.0,0.002]
[1765967131573,0.8417,2929.1,2929.0,0.002]
[1765967134140,0.4778,2929.4,2929.0,0.002]
[1765967134573,0.4834,2929.1,2929.0,0.002]
[1765967134776,0.4778,2929.4,2929.0,0.4912]
[1765967135851,0.1368923,2929.5,2929.0,0.002]
[1765967135852,0.4834,2929.1,2929.0,0.002]
[1765967136064,0.9634,2929.1,2929.0,0.002]
[1765967136268,0.9626,2929.1,2929.0,0.002]
[1765967137175,0.4826,2929.1,2929.0,0.002]
[1765967138186,0.9757,2929.1,2929.0,0.002]
[1765967140489,0.9767,2929.1,2929.0,0.002]
[1765967141564,0.001,2929.1,2929.0,0.4639]
[1765967143895,0.001,2929.1,2929.0,0.9506]
[1765967145991,0.001,2929.1,2929.0,1.80740569]
[1765967146980,0.001,2929.1,2929.0,5.2215402]
[1765967147745,0.001,2929.1,2929.0,1.80740569]
[1765967148854,0.001,2929.1,2929.0,5.2215402]
[1765967149356,0.001,2929.1,2929.0,1.80740569]
[1765967149558,0.001,2929.1,2929.0,1.32070569]
[1765967149839,0.4441,2929.4,2929.0,1.32070569]
[1765967150127,0.4441,2929.4,2929.0,0.4639]
[1765967152632,0.17777032,2929.7,2929.0,0.9506]
[1765967152801,0.4931,2929.6,2929.0,0.9506]
[1765967154539,0.001,2929.4,2929.0,0.9506]
[1765967155068,0.4941,2929.4,2929.0,0.4639]
[1765967155704,0.4941,2929.4,2929.0,0.9506]
[1765967155905,0.4941,2929.4,2929.0,1.85696853]
[1765967158105,0.001,2929.4,2929.0,1.85696853]
[1765967158306,0.001,2929.4,2929.1,4.20363128]
[1765967160211,0.0002,2929.4,2929.1,4.20363128]
[1765967161740,0.4933,2929.4,2929.1,4.20363128]
[1765967162315,0.0002,2929.4,2929.1,4.20363128]
[1765967162935,0.0002,2929.4,2929.1,4.69033128]
[1765967163115,0.0002,2929.4,2929.1,4.20363128]
[1765967165618,0.0002,2929.4,2929.1,4.83643128]
[1765967166014,0.0002,2929.4,2929.1,4.36673128]
[1765967166308,0.0002,2929.4,2929.1,4.20363128]
[1765967167557,0.0002,2929.4,2929.0,0.90836853]
[1765967167745,0.0002,2929.4,2929.0,0.002]
[1765967168047,0.9289,2929.1,2929.0,0.002]
[1765967169230,0.0002,2929.4,2928.9,0.002]
[1765967169231,0.2853,2929.0,2928.9,0.002]
[1765967169435,0.7424,2929.0,2928.9,0.002]
[1765967171747,0.2853,2929.0,2928.9,0.002]
[1765967171951,0.4571,2929.2,2928.9,0.002]
[1765967172442,0.0002,2929.4,2928.9,0.002]
[1765967172625,0.0002,2929.4,2929.0,4.20363128]
[1765967174042,0.0002,2929.4,2928.9,4.20563128]
[1765967174753,0.0002,2929.4,2928.9,0.002]
[1765967175526,0.0002,2929.4,2929.3,4.20363128]
[1765967175827,0.0002,2929.4,2929.3,1.37370626]
[1765967178632,0.0002,2929.4,2929.3,4.78749112]
[1765967178948,0.0002,2929.4,2929.3,4.31779112]
[1765967179147,0.0002,2929.4,2929.3,0.90400626]
[1765967181060,0.0002,2929.4,2929.3,1.37370626]
[1765967181264,0.0002,2929.4,2929.3,0.90400626]
[1765967181460,0.0002,2929.4,2929.3,5.10576656]
[1765967181758,0.0002,2929.4,2929.3,8.51955142]
[1765967182444,0.0002,2929.4,2929.3,5.10576656]
[1765967183359,0.0002,2929.4,2929.3,8.51955142]
[1765967184244,0.4575,2930.2,2929.3,8.51955142]
[1765967184556,0.4575,2930.2,2929.7,4.2017603]
[1765967185084,0.4575,2930.2,2929.7,4.6714603]
[1765967185969,0.4575,2930.2,2929.9,4.2017603]
[1765967185970,0.0004,2930.2,2929.9,4.2017603]
[1765967186155,0.0004,2930.2,2930.1,4.2017603]
[1765967186747,0.0004,2930.2,2929.9,4.6714603]
[1765967186947,0.0004,2930.2,2930.1,4.2017603]
[1765967188263,0.0004,2930.2,2930.0,4.2017603]
[1765967188769,0.0004,2930.2,2930.1,0.4697]
[1765967188985,0.0004,2930.2,2930.1,0.6328]
[1765967190965,0.0004,2930.2,2930.0,4.66890633]
[1765967194480,0.0004,2930.2,2930.0,5.11950633]
[1765967196187,0.0004,2930.2,2930.1,0.6137]
[1765967196882,0.0004,2930.2,2930.1,0.1631]
[1765967198163,0.0004,2930.2,2930.1,0.6361]
[1765967199957,0.0004,2930.2,2930.1,0.51558221]
[1765967201388,0.0004,2930.2,2930.1,4.3648603]
[1765967201959,0.0004,2930.2,2930.1,7.7777131]
[1765967202265,0.0004,2930.2,2930.1,4.3648603]
[1765967202670,0.0004,2930.2,2930.1,7.7777131]
[1765967203284,0.0004,2930.2,2930.1,11.9794734]
[1765967203486,0.0004,2930.2,2930.1,9.36367083]
[1765967204367,0.0004,2930.2,2930.1,13.56543113]
[1765967206208,0.001,2930.6,2930.1,13.56543113]
[1765967206209,0.001,2930.6,2930.5,4.35798696]
[1765967206502,0.001,2930.6,2930.5,8.55974726]
[1765967208268,0.0002,2930.6,2930.5,8.55974726]
[1765967208478,0.0002,2930.6,2930.5,10.1771475]
[1765967212199,0.0002,2930.6,2930.5,2.56300024]
[1765967212403,0.0002,2930.6,2930.5,8.55974726]
[1765967213372,0.0002,2930.6,2930.5,5.1473603]
[1765967214094,0.0002,2930.6,2930.5,8.55974726]
[1765967214294,0.0002,2930.6,2930.5,5.1473603]
[1765967214498,0.0002,2930.6,2930.5,8.55974726]
[1765967214795,0.0002,2930.6,2930.5,10.17714007]
[1765967217613,0.0002,2930.6,2930.5,9.23154007]
[1765967220273,0.0002,2930.6,2930.5,9.22684478]
[1765967220474,0.0002,2930.6,2930.5,13.42390979]
[1765967220981,0.0002,2930.6,2930.5,5.81445782]
[1765967221182,0.0002,2930.6,2930.5,4.19706501]
[1765967222645,0.0002,2930.6,2930.5,4.19906501]
[1765967224807,0.0002,2930.6,2930.5,0.002]
[1765967226405,0.0002,2930.6,2930.5,4.19906501]
[1765967226604,0.0002,2930.6,2930.5,5.37993618]
[1765967227492,0.0002,2930.6,2930.5,1.18287117]
[1765967227692,0.0002,2930.6,2930.5,4.19906501]
[1765967229215,0.0002,2930.6,2930.5,0.002]
[1765967229517,0.0002,2930.6,2930.5,4.19906501]
[1765967233589,0.0002,2930.6,2930.5,4.66066501]
[1765967237715,0.4753,2930.6,2930.5,4.66066501]
[1765967238317,0.4745,2930.6,2930.5,4.66066501]
[1765967238516,0.4745,2930.6,2930.5,4.19906501]
[1765967238928,0.4755,2930.6,2930.5,4.19906501]
[1765967240715,0.001,2930.6,2930.5,5.37993398]
[1765967241025,0.9676,2930.6,2930.5,5.37993398]
[1765967241349,0.9676,2930.6,2930.5,0.002]
[1765967241737,0.7501,2930.1,2930.0,0.002]
[1765967242247,4.20084654,2930.4,2929.3,0.002]
[1765967242248,1.16,2929.4,2929.3,0.002]
[1765967244028,0.7503,2929.1,2929.0,0.002]
[1765967252338,0.2588,2929.1,2929.0,0.002]
[1765967252538,0.4915,2929.3,2929.0,0.002]
[1765967252744,0.4751,2929.1,2929.0,0.002]
[1765967253638,0.4915,2929.3,2929.0,0.4636]
[1765967254146,0.9666,2929.1,2929.0,0.002]
[1765967254446,0.4895,2929.6,2929.0,0.4726]
[1765967254615,0.4895,2929.4,2929.0,0.002]
[1765967255937,0.4895,2929.4,2929.0,0.4653]
[1765967256140,0.4887,2929.4,2929.0,0.4653]
[1765967256335,0.1868,2929.8,2929.1,0.03414017]
[1765967256548,0.1868,2929.8,2929.1,0.4633]
[1765967257618,0.1868,2929.8,2929.0,0.002]
[1765967258152,0.955,2929.1,2929.0,0.002]
[1765967258453,0.955,2929.1,2928.9,0.002]
[1765967258454,0.7503,2929.0,2928.9,0.002]
[1765967259842,0.4799,2929.0,2928.9,0.002]
[1765967260248,0.955,2929.0,2928.9,0.002]
[1765967260822,0.955,2929.0,2928.2,0.002]
[1765967260823,1.1506,2928.3,2928.2,0.002]
[1765967268759,0.953,2928.3,2928.2,0.002]
[1765967269134,0.4779,2928.3,2928.2,0.002]
[1765967270128,0.1976,2928.7,2928.2,0.4549]
[1765967270367,0.4751,2928.6,2928.2,0.002]
[1765967271430,0.955,2928.3,2928.2,0.002]
[1765967271636,0.953,2928.0,2927.9,0.002]
[1765967277162,0.4751,2928.5,2927.9,0.4549]
[1765967277362,0.4751,2928.3,2927.9,0.4549]
[1765967278857,0.4751,2928.3,2927.9,0.002]
[1765967279771,0.4799,2928.0,2927.9,0.002]
[1765967280269,0.4791,2928.0,2927.9,0.002]
[1765967281271,0.9542,2928.0,2927.9,0.002]
[1765967281450,0.4791,2928.0,2927.9,0.002]
[1765967282380,0.9542,2928.0,2927.9,0.002]
[1765967283258,0.9459,2927.9,2927.8,0.002]
[1765967283760,0.9494,2927.8,2927.5,0.002]
[1765967286178,7.4094,2927.8,2927.5,0.002]
[1765967288087,0.7726,2927.6,2927.5,0.002]
[1765967289989,0.9639,2927.6,2927.5,0.002]
[1765967294096,7.4239,2927.8,2927.5,0.002]
[1765967294402,1.23979,2927.7,2927.5,0.002]
[1765967295168,0.74239,2927.7,2927.6,0.4997]
[1765967296192,0.74239,2927.7,2927.5,0.002]
[1765967296193,1.20889,2927.7,2927.5,0.002]
[1765967296388,1.20889,2927.7,2927.6,0.002]
[1765967297985,0.74239,2927.7,2927.6,0.5017]
[1765967300094,1.20889,2927.7,2927.6,0.002]
[1765967300299,0.74239,2927.7,2927.6,0.5017]
[1765967300493,1.20889,2927.7,2927.6,0.5017]
[1765967300698,1.20889,2927.7,2927.6,0.002]
[1765967301898,0.74239,2927.7,2927.6,0.002]
[1765967302581,0.74239,2927.7,2927.6,0.5017]
[1765967304098,0.74159,2927.7,2927.6,0.5017]
[1765967306479,6.461,2927.8,2927.6,0.5017]
[1765967306797,6.9584,2927.8,2927.6,0.5017]
[1765967307001,0.4665,2927.7,2927.6,0.002]
[1765967307804,0.9639,2927.7,2927.6,0.002]
[1765967308174,0.4665,2927.7,2927.6,0.002]
[1765967311290,6.461,2927.8,2927.6,0.5017]
[1765967311492,7.15684,2927.8,2927.6,0.5017]
[1765967312695,7.15684,2927.8,2927.7,0.4997]
[1765967312895,7.62334,2927.8,2927.6,0.002]
[1765967313781,0.4665,2927.7,2927.6,0.002]
[1765967313991,0.9639,2927.7,2927.6,0.002]
[1765967315408,1.775974,2927.7,2927.6,0.002]
[1765967319579,0.812074,2927.7,2927.6,0.4788]
[1765967320522,6.461,2927.8,2927.6,0.4788]
[1765967320886,6.461,2927.8,2927.7,0.9629]
[1765967321698,0.001,2927.8,2927.7,8.58739935]
[1765967321913,0.001,2927.8,2927.7,12.79624819]
[1765967322107,0.001,2927.8,2927.7,14.41784849]
[1765967323512,0.001,2927.8,2927.7,10.20899965]
[1765967324440,0.001,2927.8,2927.7,2.5845003]
[1765967324753,0.001,2927.8,2927.6,0.002]
[1765967325120,0.463,2927.7,2927.6,0.002]
[1765967326331,0.9422,2927.7,2927.6,0.002]
[1765967328140,0.9414,2927.7,2927.6,0.002]
[1765967330032,0.4632,2927.7,2927.6,0.002]
[1765967330433,0.001,2927.7,2927.6,0.4788]
[1765967331747,0.464,2927.7,2927.6,0.002]
[1765967332915,0.001,2927.7,2927.6,0.4788]
[1765967337758,0.464,2927.7,2927.6,0.4788]
[1765967338147,1.68362,2927.7,2927.6,0.002]
[1765967338346,12.35246884,2927.7,2927.6,0.002]
[1765967338650,8.14362,2927.7,2927.6,0.002]
[1765967340232,7.66442,2927.7,2927.6,0.002]
[1765967340737,8.14362,2927.7,2927.6,0.002]
[1765967342058,7.20142,2927.7,2927.6,0.4788]
[1765967342364,6.461,2927.7,2927.6,0.4788]
[1765967342560,6.924,2927.7,2927.6,0.002]
[1765967343620,7.4032,2927.7,2927.6,0.002]
[1765967344257,0.4792,2927.5,2927.0,0.002]
[1765967344423,0.4792,2927.5,2927.0,0.4744]
[1765967344623,6.461,2927.7,2927.0,0.4744]
[1765967344929,6.461,2927.7,2927.5,0.4705]
[1765967345728,0.4665,2927.6,2927.5,0.002]
[1765967346757,6.461,2927.7,2927.5,0.002]
[1765967346934,6.461,2927.7,2927.6,0.4685]
[1765967347426,6.461,2927.7,2927.5,0.002]
[1765967347427,6.9275,2927.7,2927.5,0.002]
[1765967347626,0.7852,2927.6,2927.5,0.002]
[1765967348161,11.41027884,2927.7,2927.0,0.002]
[1765967348162,0.4649,2927.1,2927.0,0.002]
[1765967348331,5.14954884,2927.1,2927.0,0.002]
[1765967348655,11.41027884,2927.7,2926.8,0.002]
[1765967348656,0.7868,2926.9,2926.8,0.002]
[1765967348859,0.311,2926.9,2926.8,0.002]
[1765967349025,0.4758,2927.1,2926.8,0.002]
[1765967349026,10.6171359,2927.7,2926.8,0.4705]
[1765967349226,0.4758,2927.3,2926.8,0.4705]
[1765967350038,0.4665,2926.9,2926.8,0.002]
[1765967350850,0.9423,2926.9,2926.8,0.002]
[1765967351047,0.4758,2927.2,2926.8,0.4705]
[1765967352282,0.475,2927.2,2926.8,0.4705]
[1765967352573,1.06681359,2927.6,2927.1,0.4685]
[1765967352787,7.52681359,2927.6,2927.1,0.4685]
[1765967352959,0.17839853,2927.5,2927.1,0.4685]
[1765967353155,0.17839853,2927.5,2926.8,0.4744]
[1765967353848,0.4665,2926.9,2926.8,0.002]
[1765967354455,0.9423,2926.9,2926.8,0.002]
[1765967354870,0.4665,2926.9,2926.8,0.002]
[1765967361095,1.1401,2926.9,2926.8,0.002]
[1765967361310,1.1401,2926.9,2926.6,0.002]
[1765967361311,0.9423,2926.7,2926.6,0.002]
[1765967361653,1.47743432,2926.7,2926.6,0.002]
[1765967361789,0.9423,2926.7,2926.6,0.002]
[1765967363325,0.3072,2926.6,2926.5,0.002]
[1765967363480,0.783,2926.6,2926.5,0.002]
[1765967369157,0.9407,2926.5,2926.4,0.002]
[1765967371552,6.9358,2926.8,2926.4,0.4705]
[1765967371727,0.71336,2926.7,2926.4,0.4705]
[1765967372055,1.18916,2926.7,2926.4,0.4705]
[1765967373146,0.71336,2926.7,2926.4,0.4705]
[1765967373774,6.46,2926.8,2926.4,0.4705]
[1765967374080,6.9358,2926.8,2926.4,0.4705]
[1765967374381,0.001,2926.7,2926.4,0.4705]
[1765967375044,0.4949,2926.7,2926.4,0.4705]
[1765967375457,0.4762,2926.5,2926.4,0.002]
[1765967375655,0.9701,2926.5,2926.4,0.002]
[1765967376280,0.9693,2926.5,2926.4,0.002]
[1765967376883,0.4754,2926.5,2926.4,0.002]
[1765967377257,0.9643,2926.5,2926.4,0.002]
[1765967383024,0.4889,2926.4,2925.8,0.002]
[1765967386124,0.4889,2926.4,2925.9,0.495]
[1765967386485,0.4889,2926.4,2925.8,0.002]
[1765967386796,0.4889,2926.4,2925.8,0.497]
[1765967387383,0.6461,2926.6,2925.8,0.497]
[1765967387384,0.4553,2925.9,2925.8,0.002]
[1765967387589,1.0961,2925.9,2925.8,0.002]
[1765967393939,0.4553,2925.9,2925.8,0.002]
[1765967394433,0.9442,2925.9,2925.8,0.002]
[1765967395052,0.1809,2926.1,2925.8,0.002]
[1765967395219,0.66409,2926.0,2925.8,0.002]
[1765967395425,6.46,2926.2,2926.1,0.4682]
[1765967395958,6.9153,2926.2,2925.8,0.497]
[1765967396155,7.4042,2926.2,2925.8,0.497]
[1765967396365,7.4042,2926.2,2925.8,0.002]
[1765967396366,0.4889,2926.1,2925.8,0.002]
[1765967396733,0.4553,2925.9,2925.8,0.002]
[1765967397131,0.9442,2925.9,2925.8,0.002]
[1765967397527,0.4553,2925.9,2925.8,0.002]
[1765967397766,0.9442,2925.9,2925.8,0.002]
[1765967397971,0.8303,2925.7,2925.6,0.002]
[1765967400261,0.8295,2925.7,2925.6,0.002]
[1765967401162,0.9431,2925.4,2925.3,0.002]
[1765967401366,5.15616126,2925.4,2925.3,0.002]
[1765967401570,5.15616126,2925.4,2924.9,0.002]
[1765967401571,0.9419,2925.0,2924.9,0.002]
[1765967401745,0.4889,2925.3,2924.9,0.002]
[1765967402263,4.60702764,2925.8,2924.9,0.002]
[1765967402264,0.4553,2925.0,2924.9,0.002]
[1765967402446,0.9442,2925.0,2924.9,0.002]
[1765967402847,0.4889,2925.5,2924.9,0.002]
[1765967403065,0.4889,2925.3,2924.9,0.002]
[1765967403284,0.4889,2925.3,2924.9,0.4702]
[1765967404344,0.4538,2925.7,2925.1,0.5909]
[1765967405073,0.1809,2925.9,2925.1,0.5909]
[1765967405245,0.6347,2925.9,2925.1,0.5909]
[1765967405444,0.1931,2926.1,2925.2,4.21306126]
[1765967405672,0.001,2926.4,2926.3,0.4591]
[1765967405841,0.001,2926.4,2925.1,0.91418653]
[1765967405842,0.4538,2926.3,2925.2,0.4992]
[1765967406238,0.4538,2926.3,2925.3,0.4992]
[1765967407575,0.4548,2926.4,2925.3,0.4992]
[1765967407779,0.4538,2926.1,2925.1,0.91418653]
[1765967407946,0.4538,2926.1,2925.2,0.56264478]
[1765967408341,0.4538,2926.1,2925.2,1.06184478]
[1765967410172,0.001,2926.4,2925.2,1.06184478]
[1765967410173,0.001,2926.4,2925.3,0.4992]
[1765967410374,0.001,2926.4,2925.4,0.4992]
[1765967410546,0.001,2926.4,2925.4,0.9472217]